Cogmind - Beta 16.1 @@@ ROGUE MODE // 2026.04.12 @ 13:13:39 Player: beans Result: Destroyed by B-75 Beast with Heavy Plasma Cannon Performance ------------- Evolutions (4) 2000 Regions Visited (10) 2000 Robots Destroyed (123) 615 Value Destroyed (2934) 2934 Prototype IDs (32) 640 Alien Tech Used (0) 0 Bonus (501) 501 TOTAL SCORE: 8690 Bonus ------- High Alert Combat Kills 89 Follower Combat Kills 142 Aligned with FarCom 300 Friendly Fire -30 Cogmind --------- Core Integrity 0/850 Matter 147/300 Energy 100/100 System Corruption 1% Temperature Cool (12) Movement Core (250) Ox4 Location -6/Extension Parts ------- > --- POWER (1) -------- (None) > --- PROPULSION (5) --- (None) > --- UTILITY (7) ------ Transport Network Coupler Salvage Targeting Computer Target Analyzer Core Analyzer Hardened Medium Armor Plating Improved System Shield > --- WEAPON (2) ------- Coil Gun > --- INVENTORY (5) ---- Matter Compressor (250) Matter Compressor (250) Cloak of Protection Sensor Drone Bay (20/20) Plasma Rifle Peak State ------------ > --- POWER ------------ Light Fission Core > --- PROPULSION ------- Medium Treads Medium Treads > --- UTILITY ---------- Transport Network Coupler Salvage Targeting Computer Target Analyzer Core Analyzer Launcher Loader Improved System Shield > --- WEAPON ----------- Plasma Rifle Improved Proton Missile Launcher > --- INVENTORY -------- Matter Compressor Matter Compressor Cloak of Protection Sensor Drone Bay Plasma Rifle [Rating: 51] Favorites ----------- Power Light Deuterium Engine Engine Light Deuterium Engine Power Core Light Fission Core Reactor Cold Fusion Reactor Propulsion Medium Treads Treads Medium Treads Leg Flexi-carbon Leg Flight Unit Cooled VTOL Module Utility Transport Network Coupler Device Improved Terrain Scanner Storage Matter Compressor Processor Transport Network Coupler Hackware Improved System Shield Protection Hardened Light Armor Plating Weapon Plasma Rifle Energy Gun Plasma Rifle Energy Cannon Long-range Phase Cannon Ballistic Gun Coil Gun Ballistic Cannon Flak Cannon Launcher Improved Proton Missile Launcher Build | -11 -10 -10 -9 -9 -9 -8 -8 -7 -6 -6 ------- Run | Yrd Mat Min Mat Min Exi Min Mat Fac Fac Ext Slots Evolved 8 | . . . 2 . . . 2 2 2 . Power . | . . . . . . . . . . . Propulsion 3 | . . . . . . . . 2 1 . Utility 5 | . . . 2 . . . 2 . 1 . Weapon . | . . . . . . . . . . . Parts Attached 60 | 3 4 . 6 5 . . 4 9 1 28 Power 6 | 1 . . . . . . . . 1 4 Engine 3 | 1 . . . . . . . . . 2 Core 2 | . . . . . . . . . . 2 Reactor 1 | . . . . . . . . . 1 . Propulsion 9 | 2 . . . 2 . . 1 1 . 3 Treads 6 | 2 . . . 2 . . . . . 2 Leg 2 | . . . . . . . 1 . . 1 Wheel . | . . . . . . . . . . . Hover . | . . . . . . . . . . . Flight 1 | . . . . . . . . 1 . . Utility 20 | . 2 . 2 2 . . 3 1 . 10 Device 7 | . . . 1 1 . . . . . 5 Storage 3 | . 1 . . . . . . . . 2 Processor 7 | . 1 . 1 . . . 3 1 . 1 Hackware 1 | . . . . . . . . . . 1 Protection 2 | . . . . 1 . . . . . 1 Artifact . | . . . . . . . . . . . Weapon 25 | . 2 . 4 1 . . . 7 . 11 Energy Gun 12 | . . . 2 . . . . 2 . 8 Energy Cannon 1 | . . . . . . . . 1 . . Ballistic Gun 4 | . . . . . . . . 2 . 2 Ballistic Cannon 5 | . 2 . 2 1 . . . . . . Launcher 3 | . . . . . . . . 2 . 1 Special Weapon . | . . . . . . . . . . . Impact Weapon . | . . . . . . . . . . . Slashing Weapon . | . . . . . . . . . . . Piercing Weapon . | . . . . . . . . . . . Special Melee Weapon . | . . . . . . . . . . . Unidentified Prototypes 8 | . . . 2 1 . . . 4 1 . Parts Lost 30 | . . . 6 . . . . 6 . 18 Power 2 | . . . 1 . . . . . . 1 Propulsion 6 | . . . 2 . . . . 1 . 3 Utility 7 | . . . . . . . . 2 . 5 Weapon 15 | . . . 3 . . . . 3 . 9 Highest Loss Streak 5 | . . . 5 . . . . 3 . 4 To Critical Strikes . | . . . . . . . . . . . Average Backups 3 | . . . 1 4 5 5 3 4 5 4 Power . | . . . . . . . . . . . Propulsion . | . . . . . . . . . . . Utility 2 | . . . . 3 4 5 3 1 2 2 Weapon 1 | . . . 1 1 . . . 2 2 1 Tool/Special . | . . . . . . . . . . . Unused Backups 3 | . . . . . . . . . . 3 Power . | . . . . . . . . . . . Propulsion . | . . . . . . . . . . . Utility 1 | . . . . . . . . . . 1 Weapon 2 | . . . . . . . . . . 2 Tool/Special . | . . . . . . . . . . . Average Slot Usage (%) 67 | . 67 100 67 77 88 88 90 54 32 61 Engine 3 | . 14 14 6 . . . 8 3 . 2 Core 1 | . . . . . . . . . . 1 Treads 12 | . 28 28 12 18 22 22 13 . . 9 Device 4 | . . . 10 11 11 11 11 7 . 2 Storage 5 | . 9 14 6 . . . . . . 7 Processor 21 | . 3 14 13 22 22 22 27 29 26 23 Hackware 1 | . . . . . . . . . . 2 Protection 1 | . . . . 4 11 11 9 . . . Energy Gun 4 | . . . 1 . . . . 1 . 7 Ballistic Cannon 7 | . 11 28 17 21 22 22 18 1 . . Peak Build Rating 51 | 3 7 7 14 19 19 19 27 30 23 51 Average Rating 27 | 2 4 7 10 16 18 19 23 20 17 37 On Entrance 12 | . 3 7 7 11 18 19 19 24 11 18 Avg Prop Armor Cover (%) 33 | . . . . . . . . . . 33 Naked Turns . | . . . . . . . . . . . Heaviest Build 33 | 3 29 29 30 18 18 18 33 19 12 31 Greatest Support 56 | 40 40 40 40 40 40 40 40 15 3 56 Greatest Overweight (x) 9 | . . . 4 4 . . 1 3 3 9 Average Overweight (x) . | . . . . . . . . . 2 . Largest Inventory Capacity 15 | 5 15 15 15 5 5 5 5 5 5 5 Average Capacity 6 | 5 12 15 10 5 5 5 5 5 5 5 Most Carried 5 | 2 1 1 5 5 5 5 5 5 5 5 Average Carried 3 | . . . 1 4 5 5 3 4 4 4 Final Capacity 15 | 5 15 15 5 5 5 5 5 5 5 5 Final Carried 5 | . . 1 4 5 5 5 2 5 5 5 Class Distribution -------------------- 70% | Mutant 16% | Scavenger-Mutant 5% | Scout 4% | Scavenger-Skirmisher Dominant Class ---------------- Mutant | -10/Materials Mutant | -10/Mines Mutant | -9/Materials Scavenger-Mutant | -9/Mines Scavenger-Mutant | -9/Exiles Scavenger-Skirmisher | -8/Mines Scavenger-Skirmisher | -8/Materials Scout | -7/Factory Mutant | -6/Factory Mutant | -6/Extension Resources | -11 -10 -10 -9 -9 -9 -8 -8 -7 -6 -6 ----------- Run | Yrd Mat Min Mat Min Exi Min Mat Fac Fac Ext Matter Collected 3729 | 215 133 146 448 281 . 98 60 319 103 1926 Remotely . | . . . . . . . . . . . Salvage Created 7618 | . 122 181 416 224 . 84 60 871 103 5557 Parts 246 | . 7 9 21 17 . 3 3 41 2 143 Haulers Intercepted 38 | . 1 . 1 . . . 1 2 1 32 Recyclers Shooed 9 | . 1 1 2 1 . 1 . . . 3 Parts Field Recycled . | . . . . . . . . . . . Retrieved Matter . | . . . . . . . . . . . Parts Self-Destructed . | . . . . . . . . . . . Prevented . | . . . . . . . . . . . Parts Restored . | . . . . . . . . . . . Kills | -11 -10 -10 -9 -9 -9 -8 -8 -7 -6 -6 ------- Run | Yrd Mat Min Mat Min Exi Min Mat Fac Fac Ext Combat Hostiles Destroyed 56 | . 2 4 15 7 . 2 1 14 . 11 Guns 7 | . . . . . . . . 1 . 6 Cannons 33 | . 2 4 15 7 . 2 1 1 . 1 AOE 14 | . . . . . . . . 12 . 2 Classes Destroyed 13 | . 2 2 4 . . . . 5 . . Worker 13 | . . . 1 1 . . . 5 . 6 Builder 6 | . . . . . . . . 1 . 5 Tunneler 5 | . . 1 . . . 1 . 1 . 2 Hauler 38 | . 1 . 1 . . . 1 2 1 32 Recycler 13 | . . 1 . 1 . 1 . 2 . 8 Watcher 4 | . . . . . . . . 2 . 2 Swarmer 10 | . . . 3 5 . 2 . . . . Grunt 32 | . 2 4 9 . . . . 9 . 8 Brawler 1 | . . . 1 . . . . . . . Sentry 6 | . . . 2 2 . . 1 . . 1 Specialist 1 | . . . . . . . . 1 . . Hunter 4 | . . . . . . . . 2 . 2 Programmer 2 | . . . . . . . . 2 . . Best Kill Streak 14 | . 2 3 7 3 . 4 1 14 1 6 Combat Bots Only 7 | . 2 2 7 3 . 2 1 7 . 3 Max Kills in Single Turn 6 | . 1 1 1 1 . 1 1 6 1 3 Gunslinging . | . . . . . . . . . . . Exploded 3 | . . . . . . . . 3 . 1 Melee . | . . . . . . . . . . . Uniques/NPCs Destroyed . | . . . . . . . . . . . Combat | -11 -10 -10 -9 -9 -9 -8 -8 -7 -6 -6 -------- Run | Yrd Mat Min Mat Min Exi Min Mat Fac Fac Ext Hostile Shots Fired 539 | . 15 25 77 21 . 7 4 152 . 238 Missed 182 | . 3 8 17 9 . 2 1 51 . 91 Hits 357 | . 12 17 60 12 . 5 3 101 . 147 Projectile 357 | . 12 17 60 12 . 5 3 101 . 147 Critical Strikes 9 | . . . . . . . . 4 . 5 Damage Taken 5259 | . 153 191 752 110 . 44 84 1327 . 2598 Core 1911 | . 24 34 229 55 . 8 29 666 . 866 Absorbed by Shields 106 | . . . . . . . . . . 106 Core Remaining (%) 60 | 100 . 76 . . . 27 94 4 . . Volleys Fired 447 | . 11 21 45 18 . 7 5 43 3 294 Largest 2 | . 2 2 2 2 . 2 2 2 1 2 Hottest 150 | . 60 60 74 74 . 74 74 138 33 150 Shots Fired 695 | . 22 42 75 37 . 14 10 47 3 445 Gun 430 | . . . 2 . . . . 20 3 405 Cannon 223 | . 22 42 73 37 . 14 10 10 . 15 Launcher 42 | . . . . . . . . 17 . 25 Special . | . . . . . . . . . . . Kinetic 293 | . 22 42 73 37 . 14 10 16 3 76 Thermal 308 | . . . 2 . . . . 4 . 302 Explosive 19 | . . . . . . . . 17 . 2 Electromagnetic 75 | . . . . . . . . 10 . 65 Robot Hit Streak 13 | . 4 7 7 5 . 2 6 8 9 13 Robot Miss Streak 19 | . 2 6 9 19 . 8 9 4 . 4 Penetration Max 1 | . . . . . . . . . . 1 Secondary Targets 2 | . . . . . . . . . . 2 Max Gunslinging Chain 1 | . . . . . . . . . . 1 Shots Hit Robots 449 | . 11 18 55 14 . 9 9 27 3 303 Core Hits 271 | . 3 10 37 24 . 10 6 53 2 126 Critical Kills 2 | . . . . . . . . . 1 1 Critical Parts Destroyed 8 | . . . . . . . . 1 . 7 Critical Strikes 41 | . 2 1 1 . . . . 1 1 35 Burn 27 | . . . . . . . . . . 27 Destroy 10 | . . . . . . . . 1 1 8 Blast 4 | . 2 1 1 . . . . . . . Melee Attacks . | . . . . . . . . . . . Impact . | . . . . . . . . . . . Slashing . | . . . . . . . . . . . Piercing . | . . . . . . . . . . . Sneak Attacks . | . . . . . . . . . . . Combat Hostiles . | . . . . . . . . . . . Follow-up Attacks . | . . . . . . . . . . . Damage Inflicted 13672 | . 193 386 1000 309 . 128 168 2529 76 8883 Guns 6765 | . . . 17 . . . . 294 76 6378 Cannons 2817 | . 193 386 983 309 . 128 168 250 . 400 Explosions 4090 | . . . . . . . . 1985 . 2105 Melee . | . . . . . . . . . . . Ramming . | . . . . . . . . . . . Kinetic 3980 | . 193 386 983 309 . 128 168 335 76 1402 Thermal 5327 | . . . 17 . . . . 139 . 5171 Explosive 2393 | . . . . . . . . 1985 . 408 Electromagnetic 1972 | . . . . . . . . 70 . 1902 Impact . | . . . . . . . . . . . Slashing . | . . . . . . . . . . . Piercing . | . . . . . . . . . . . Highest Corruption 3 | . . . 2 2 2 2 . 3 . 1 Average Corruption 1 | . . . 2 2 2 2 . 1 . 1 Corruption Purged . | . . . . . . . . . . . Corruption Blocked . | . . . . . . . . . . . Effects 24 | . . . 4 11 1 1 . 1 . 6 Message Errors 4 | . . . 2 2 . . . . . . Matter Fused 5 | . . . . 1 1 1 . . . 2 Heat Flow Errors 6 | . . . 2 2 . . . . . 2 Energy Discharges 3 | . . . . 2 . . . 1 . . Data Loss (minor) 1 | . . . . . . . . . . 1 Data Loss (major) 2 | . . . . 2 . . . . . . Misfires 2 | . . . . 1 . . . . . 1 Alerts 1 | . . . . 1 . . . . . . Overload Shots . | . . . . . . . . . . . Overflow Damage 112 | . . . . . . . . 58 . 54 Projectiles 72 | . . . . . . . . 58 . 14 Explosions 40 | . . . . . . . . . . 40 Melee . | . . . . . . . . . . . Knockbacks 22 | . 5 3 3 8 . 2 . 1 . . Impact . | . . . . . . . . . . . Kinetic 20 | . 5 1 3 8 . 2 . 1 . . Secondary 2 | . . 2 . . . . . . . . Self-Inflicted Damage 19 | . . . . . . . . 13 . 6 Shots 2 | . . . . . . . . 1 . 1 Rammed 1 | . . . . . . . . . . 1 Targets Rammed 1 | . . . . . . . . . . 1 Kicked . | . . . . . . . . . . . Crushed . | . . . . . . . . . . . Highest Temperature 369 | . 78 75 190 179 . 12 6 144 . 369 Average Temperature 84 | . 42 40 27 46 . 5 2 59 . 97 Received Heat Transfer 1567 | . 87 93 297 9 . . 9 339 . 733 Effects 5 | . . . . . . . . . . 5 Shutdowns 2 | . . . . . . . . . . 2 Interference 2 | . . . . . . . . . . 2 Damage (minor) 1 | . . . . . . . . . . 1 Siege Activations . | . . . . . . . . . . . Martial Activations . | . . . . . . . . . . . Shielding Activations . | . . . . . . . . . . . Robots Disrupted 1 | . . . . . . . . . . 1 Combat Hostiles . | . . . . . . . . . . . Robots Corrupted 3 | . . . . . . . . . . 3 Combat Hostiles 2 | . . . . . . . . . . 2 Parts Fried 10 | . . . . . . . . . . 10 Impact Corruptions . | . . . . . . . . . . . Robots Melted 8 | . . . . . . . . . . 8 Combat Hostiles . | . . . . . . . . . . . Parts Melted 35 | . . . . . . . . . . 35 Heat Transferred 13683 | . . . 37 . . . . 111 . 13535 Parts Sabotaged . | . . . . . . . . . . . Parts Stolen . | . . . . . . . . . . . Parts Stripped . | . . . . . . . . . . . Power Chain Reactions 8 | . . . . . . . . . . 8 Alert | -11 -10 -10 -9 -9 -9 -8 -8 -7 -6 -6 ------- Run | Yrd Mat Min Mat Min Exi Min Mat Fac Fac Ext Maximum Alert Level 2 | . . . . . . . . 2 1 1 Low Security (%) 90 | 100 100 100 100 100 . 100 100 76 15 91 Level 1 7 | . . . . . . . . 11 84 8 Level 2 1 | . . . . . . . . 12 . . Level 3 . | . . . . . . . . . . . Level 4 . | . . . . . . . . . . . Level 5 . | . . . . . . . . . . . High Security . | . . . . . . . . . . . Max Security . | . . . . . . . . . . . Peak Influence 565 | . 51 75 164 120 . 65 30 565 280 226 Initial 280 | . . 12 22 60 . . 17 . 280 91 Average 60 | . 4 22 67 38 . 47 4 119 232 59 Influence Increases 2694 | . 58 191 435 205 . 75 43 833 7 847 Destroy 0b10 Robot/C 1260 | . 40 140 320 140 . 40 20 280 . 280 Destroy 0b10 Robot/NC 400 | . 5 10 15 10 . 10 5 65 5 275 Destroy Leader 252 | . 12 30 74 10 . 10 12 48 2 54 Allied During Kill 48 | . . 11 25 . . . . . . 12 Successful Hack 26 | . . . . . . . 6 18 . 2 Disable Machine 60 | . . . . . . . . 30 . 30 Destroy Structure 183 | . 1 . 1 . . . . 122 . 59 Partial Spotted 15 | . . . . . . . . 15 . . Lose Combat Pursuer 450 | . . . . 45 . 15 . 255 . 135 Influence Decreases 2501 | . 27 165 336 361 . 30 88 261 392 841 Entered New Map 566 | . . 19 35 96 . . 28 . 292 96 Time Decay 1555 | . 27 146 181 265 . 30 60 201 100 545 Lost Part 300 | . . . 60 . . . . 60 . 180 Lost Ally 80 | . . . 60 . . . . . . 20 Squads Dispatched 13 | . . . 2 . . . . 6 1 4 Investigation 2 | . . . . . . . . 1 . 1 Extermination 3 | . . . . . . . . 2 1 . Reinforcement 7 | . . . 2 . . . . 2 . 3 Assault . | . . . . . . . . . . . Garrison 1 | . . . . . . . . 1 . . Intercept . | . . . . . . . . . . . Searches Triggered . | . . . . . . . . . . . Construction Impeded 4 | . . . . . . . . 1 . 3 Haulers Reinforced 1 | . . . . . . . . 1 . . Active Scanning Responses . | . . . . . . . . . . . Cargo Convoy Interrupts 1 | . . . . . . . . 1 . . Stealth | -11 -10 -10 -9 -9 -9 -8 -8 -7 -6 -6 --------- Run | Yrd Mat Min Mat Min Exi Min Mat Fac Fac Ext Distress Signals 9 | . . . 2 . . . . 2 . 5 Communications Jammed . | . . . . . . . . . . . Distress Signals . | . . . . . . . . . . . Times Spotted 116 | . 2 7 21 8 . 3 1 39 . 35 Peak Tracking Total 13 | . 2 3 7 4 . 3 1 13 . 9 Tactical Retreats 16 | . . . . 2 . 1 . 8 . 5 Traps | -11 -10 -10 -9 -9 -9 -8 -8 -7 -6 -6 ------- Run | Yrd Mat Min Mat Min Exi Min Mat Fac Fac Ext Traps Triggered 2 | . . . . . . . 1 1 . . Indirectly . | . . . . . . . . . . . Trap Hack Attempts . | . . . . . . . . . . . Triggered . | . . . . . . . . . . . Disarmed . | . . . . . . . . . . . Reprogrammed . | . . . . . . . . . . . Reused . | . . . . . . . . . . . Traps Extracted . | . . . . . . . . . . . Installed . | . . . . . . . . . . . Triggered . | . . . . . . . . . . . Machines | -11 -10 -10 -9 -9 -9 -8 -8 -7 -6 -6 ---------- Run | Yrd Mat Min Mat Min Exi Min Mat Fac Fac Ext Machines Disabled 4 | . . . . . . . . 2 . 2 Max in Single Turn 2 | . . . . . . . . 1 . 2 Energy Cycler 2 | . . . . . . . . . . 2 Machines Repaired . | . . . . . . . . . . . Machines Dismantled . | . . . . . . . . . . . Machines Sabotaged . | . . . . . . . . . . . Overloaded Fab Kills . | . . . . . . . . . . . Hacking | -11 -10 -10 -9 -9 -9 -8 -8 -7 -6 -6 --------- Run | Yrd Mat Min Mat Min Exi Min Mat Fac Fac Ext Machines Accessed 10 | . . . . 1 1 . 1 4 . 3 Terminals 5 | . . . . . . . . 2 . 3 Fabricators 2 | . . . . . . . . 2 . . Repair Stations 1 | . . . . . . . 1 . . . Recycling Units . | . . . . . . . . . . . Scanalyzers . | . . . . . . . . . . . Garrison Access . | . . . . . . . . . . . Total Hacks 15 | . . . . 1 1 . 1 7 . 5 Successful 9 | . . . . 1 1 . 1 4 . 2 Failed 6 | . . . . . . . . 3 . 3 Catastrophic 2 | . . . . . . . . 1 . 1 Database Lockouts . | . . . . . . . . . . . Manual 4 | . . . . . 1 . . 3 . . Terminals 10 | . . . . . . . . 5 . 5 Fabricators 2 | . . . . . . . . 2 . . Repair Stations 1 | . . . . . . . 1 . . . Recycling Units . | . . . . . . . . . . . Scanalyzers . | . . . . . . . . . . . Garrison Access . | . . . . . . . . . . . Terminal Hacks 5 | . . . . 1 1 . . 1 . 2 Record 1 | . . . . . . . . . . 1 Prototype ID Bank 1 | . . . . . . . . . . 1 Open Door 1 | . . . . 1 . . . . . . Hauler Manifests 1 | . . . . . . . . 1 . . Proto ID Catalog 1 | . . . . . 1 . . . . . Fabricator Hacks 2 | . . . . . . . . 2 . . Network Status 1 | . . . . . . . . 1 . . Build 1 | . . . . . . . . 1 . . Repair Station Hacks 1 | . . . . . . . 1 . . . Refit 1 | . . . . . . . 1 . . . Recycling Unit Hacks . | . . . . . . . . . . . Scanalyzer . | . . . . . . . . . . . Garrison Access Hacks . | . . . . . . . . . . . Unauthorized Hacks 1 | . . . . . . . . 1 . . Terminals 1 | . . . . . . . . 1 . . Botnet 1 | . . . . . . . . 1 . . Fabricators . | . . . . . . . . . . . Repair Stations . | . . . . . . . . . . . Recycling Units . | . . . . . . . . . . . Scanalyzers . | . . . . . . . . . . . Garrison Access . | . . . . . . . . . . . Data Cores Recovered . | . . . . . . . . . . . Used . | . . . . . . . . . . . Hacking Detections 3 | . . . . . . . . 1 . 2 Full Trace Events 2 | . . . . . . . . 1 . 1 Feedback Events . | . . . . . . . . . . . Feedback Blocked . | . . . . . . . . . . . Robot Schematics Acquired . | . . . . . . . . . . . Robots Built . | . . . . . . . . . . . Authchips . | . . . . . . . . . . . Time 116 | . . . . . . . . 116 . . Total Robot Build Rating . | . . . . . . . . . . . Part Schematics Acquired . | . . . . . . . . . . . Parts Built . | . . . . . . . . . . . Authchips . | . . . . . . . . . . . Time . | . . . . . . . . . . . Total Part Build Rating . | . . . . . . . . . . . Part Studies Acquired . | . . . . . . . . . . . Parts Repaired . | . . . . . . . . . . . Time . | . . . . . . . . . . . Parts Recycled . | . . . . . . . . . . . Recycled Matter . | . . . . . . . . . . . Retrieved Matter . | . . . . . . . . . . . Retrieved Components . | . . . . . . . . . . . Parts Scanalyzed . | . . . . . . . . . . . Part Schematics Acquired . | . . . . . . . . . . . Parts Damaged . | . . . . . . . . . . . Bothacking | -11 -10 -10 -9 -9 -9 -8 -8 -7 -6 -6 ------------ Run | Yrd Mat Min Mat Min Exi Min Mat Fac Fac Ext Used RIF Installer . | . . . . . . . . . . . Robots Hacked . | . . . . . . . . . . . Non-combat . | . . . . . . . . . . . Combat . | . . . . . . . . . . . Robot Hacks Applied . | . . . . . . . . . . . Relay Couplers Released . | . . . . . . . . . . . Fabnet Peak Effective % . | . . . . . . . . . . . Robots Rewired . | . . . . . . . . . . . Allies Hacked . | . . . . . . . . . . . Hacks Repelled . | . . . . . . . . . . . Allies | -11 -10 -10 -9 -9 -9 -8 -8 -7 -6 -6 -------- Run | Yrd Mat Min Mat Min Exi Min Mat Fac Fac Ext Total Allies 4 | . . 3 . . . . . . . 1 Largest Group 3 | . . 3 3 . . . . . . 1 Highest-Rated Group 159 | . . 40 40 . . . . . . 159 Highest-Rated Ally 159 | . . 16 16 . . . . . . 159 Total Orders 2 | . . . . 1 . . 1 . . . EXPLORE 1 | . . . . . . . 1 . . . RETURN 1 | . . . . 1 . . . . . . Ally Attacks 48 | . . 11 21 . . . . . . 16 Total Damage 777 | . . 79 220 . . . . . . 478 Kills 8 | . . 3 2 . . . . . . 3 Allies Corrupted . | . . . . . . . . . . . Allies Melted 1 | . . . . . . . . . . 1 Intel | -11 -10 -10 -9 -9 -9 -8 -8 -7 -6 -6 ------- Run | Yrd Mat Min Mat Min Exi Min Mat Fac Fac Ext Active Infowar (turns) 7895 | . 66 535 418 717 372 63 446 758 213 4307 Terrain 2668 | . . . 395 717 372 63 446 675 . . T.N.C. 7869 | . 66 535 418 717 372 63 446 732 213 4307 Robot Analysis Total . | . . . . . . . . . . . Derelict Logs Recovered 1 | . . . . 1 . . . . . . Drone Launches 2 | . . . . 1 . . 1 . . . Drone Recoveries 2 | . . . . 1 . . 1 . . . Exploration | -11 -10 -10 -9 -9 -9 -8 -8 -7 -6 -6 ------------- Run | Yrd Mat Min Mat Min Exi Min Mat Fac Fac Ext Turns Passed 8318 | 67 306 535 418 717 372 63 446 758 213 4423 Spaces Moved 4269 | 47 165 293 171 339 232 27 214 1146 129 1506 Core 580 | 12 . . 71 30 . . . 94 129 244 Treads 2336 | 35 165 293 100 309 232 27 151 . . 1024 Legs 339 | . . . . . . . 63 38 . 238 Wheels . | . . . . . . . . . . . Hover . | . . . . . . . . . . . Flight 1014 | . . . . . . . . 1014 . . Fastest Speed 32 | 50 160 160 50 150 160 160 160 32 50 50 Average Speed 126 | 131 160 160 161 161 160 160 168 47 158 150 Slowest Speed 500 | 160 160 160 250 250 160 160 190 230 200 500 Overloaded Moves 33 | . . . . . . . . 33 . . Propulsion Burnouts . | . . . . . . . . . . . Robots Hopped 3 | . . . . . . . . 3 . . Potential Cave-ins . | . . . . . . . . . . . Cave-ins Triggered . | . . . . . . . . . . . Exploration Rate (%) 35 | 3 35 69 20 60 61 12 38 37 5 47 Regions Visited 10 Branch Regions 5 Pre-discovered Areas . | . . . . . . . . . . . Known Exits Taken . | . . . . . . . . . . . Unknown Exits Taken 10 | 1 1 1 1 1 1 1 1 1 1 . Scrap Searched 4 | . . 1 . 2 . 1 . . . . Spaces Dug 12 | . . . . . . . . 12 . . Terrain Destroyed 247 | . . . . . . . . 174 . 73 Melee . | . . . . . . . . . . . Projectile 11 | . . . . . . . . 1 . 10 AOE 236 | . . . . . . . . 173 . 63 Terrain Rammed . | . . . . . . . . . . . Walls Destroyed . | . . . . . . . . . . . Machines Disabled . | . . . . . . . . . . . Actions | -11 -10 -10 -9 -9 -9 -8 -8 -7 -6 -6 --------- Run | Yrd Mat Min Mat Min Exi Min Mat Fac Fac Ext Total 6510 | 52 185 317 238 474 233 33 290 1318 134 3236 Wait 1626 | . 2 3 5 106 . . 63 89 . 1358 Move 4253 | 46 164 292 170 338 231 26 213 1139 128 1506 Hop 3 | . . . . . . . . 3 . . Pick Up 46 | 3 4 1 7 5 1 . 1 5 . 19 Fast Attach 21 | . . . . 1 . . . 4 1 15 Attach 52 | 3 4 . 6 4 . . 3 14 1 17 Detach 24 | . . . 2 1 . . . 15 1 5 Swap 11 | . . . 2 . . . 2 . . 7 Drop 26 | . . . 1 1 1 . 3 6 . 14 Fire 447 | . 11 21 45 18 . 7 5 43 3 294 Melee . | . . . . . . . . . . . Ram 1 | . . . . . . . . . . 1 Kick . | . . . . . . . . . . . Crush . | . . . . . . . . . . . Escape Stasis . | . . . . . . . . . . . Rewire . | . . . . . . . . . . . Trap . | . . . . . . . . . . . Miscellaneous . | . . . . . . . . . . . Route ------- -11/Scrapyard -10/Materials (discovered 2 exits: [*Mat] / [*Min]) -10/Mines -9/Materials -9/Mines (discovered 3 exits: *Mat x2 / *Exi) -9/Exiles -8/Mines -8/Materials -7/Factory (discovered 3 exits: [*Fac x2] / [*Low]) -6/Factory -6/Extension History --------- Turn | Location | Event 3 | -11/Scrapyard | Discovered new exit (range 16) 68 | -11/Scrapyard | Entered Materials 250 | -10/Materials | Discovered new exit (range 8) 329 | -10/Materials | Build established: Mutant 361 | -10/Materials | Discovered new exit (range 9) 374 | -10/Materials | Entered Mines 526 | -10/Mines | Found DCF Scrap (13 items) 686 | -10/Mines | Assisted by bots powering up and referring to "LRC-V3" 883 | -10/Mines | Discovered new exit (range 14) 909 | -10/Mines | Entered Materials 909 | -9/Materials | Accompanied by 3 allies 909 | -9/Materials | Evolved 2 slots: Utility x2 1145 | -9/Materials | Destroyed 7 combat bots 1155 | -9/Materials | Discovered new exit (range 13) 1166 | -9/Materials | Lost 3 allies 1179 | -9/Materials | Lost 5 parts (1p2n2w) 1236 | -9/Materials | Core integrity fell below 50% 1327 | -9/Materials | Entered Mines 1336 | -9/Mines | Found the Drone Emporium 1341 | -9/Mines | Found Prototype Device 1342 | -9/Mines | Identified Sensor Drone Bay 1595 | -9/Mines | Discovered new exit (range 12) 1647 | -9/Mines | Learned Materials interactive machine intel 1704 | -9/Mines | Build established: Scavenger-Mutant 1758 | -9/Mines | Joined a pair of Derelicts in attacking an 0b10 outpost 1890 | -9/Mines | Discovered new exit (range 5) 1908 | -9/Mines | Received a Rocket Launcher from a helpful Derelict 1945 | -9/Mines | Found DCF Scrap (13 items) 1969 | -9/Mines | Discovered new exit (range 9) 2036 | -9/Mines | Deemed a non-threat by the Exiles lab entrance 2044 | -9/Mines | Entered Exiles 2088 | -9/Exiles | Met 8R-AWN 2112 | -9/Exiles | Met EX-HEX 2155 | -9/Exiles | Met EX-BIN 2176 | -9/Exiles | Aligned with FarCom system 2177 | -9/Exiles | Given EX-Vault access code 2214 | -9/Exiles | Opened EX-Vault 2227 | -9/Exiles | Found Cloak of Protection 2259 | -9/Exiles | Warned to stay clear of 0b10 Research branches 2339 | -9/Exiles | Met EX-DEC 2395 | -9/Exiles | Discovered new exit (range 14) 2416 | -9/Exiles | Left Exiles lab with Cloak of Protection 2416 | -9/Exiles | Entered Mines 2461 | -8/Mines | Discovered new exit (range 10) 2479 | -8/Mines | Entered Materials 2479 | -8/Materials | Evolved 2 slots: Utility x2 2480 | -8/Materials | Loaded intel: 19 interactive machine locations 2721 | -8/Materials | Build established: Scavenger-Skirmisher 2897 | -8/Materials | Discovered new exit (range 16) 2925 | -8/Materials | Entered Factory 2925 | -7/Factory | Evolved 2 slots: Propulsion x2 3440 | -7/Factory | Discovered new exit (range 8) 3471 | -7/Factory | Discovered new exit (range 13) 3575 | -7/Factory | Cargo convoy interrupted 3600 | -7/Factory | Garrison activated, responded to threat 3609 | -7/Factory | Core integrity fell below 50% 3621 | -7/Factory | Destroyed 7 combat bots 3627 | -7/Factory | Core integrity fell below 20% 3631 | -7/Factory | Lost 3 parts (1n1u1w) 3676 | -7/Factory | Discovered new exit (range 15) 3683 | -7/Factory | Entered another Factory area 3683 | -6/Factory | Evolved 2 slots: Propulsion x1, Utility x1 3868 | -6/Factory | Build established: Mutant 3880 | -6/Factory | Discovered new exit (range 16) 3896 | -6/Factory | Entered Extension 4197 | -6/Extension | Energy Cycler disabled 4198 | -6/Extension | Rescued a captive Derelict 4198 | -6/Extension | Rescued a captive Derelict 4198 | -6/Extension | Rescued a captive Derelict 4199 | -6/Extension | Rescued a captive Derelict 4200 | -6/Extension | Rescued a captive Derelict 4207 | -6/Extension | Rescued A7 4362 | -6/Extension | Lost 3 parts (1u2w) 4389 | -6/Extension | Extracted ID and sensor layout for unrecognized location from A7's data core 4532 | -6/Extension | Spotted B-75 Beast 4588 | -6/Extension | Core integrity fell below 50% 4621 | -6/Extension | Lost 4 parts (1p1u2w) 4721 | -6/Extension | Disrupted transfer network 7245 | -6/Extension | Found Launcher Loader 7936 | -6/Extension | Core integrity fell below 20% 8319 | -6/Extension | Destroyed by B-75 Beast with Heavy Plasma Cannon Last Messages --------------- Acquired 44 matter. System corrupted: Matter fused (-7). Acquired 3 matter. Acquired 4 matter. System corrupted: Heat flow error (+140). Med. Treads destroyed. Acquired 3 matter. Acquired Hrd. Medium Armor Plating. Slug penetrates Wall. Knocked back. Slug penetrates B-75 Beast. Slug penetrates Wall. Slug penetrates B-75 Beast. Coil Gun destroyed. Slug penetrates B-75 Beast. System corrupted: FCS attempts to trigger Coil Gun. System corrupted: Coil Gun misfires. Slug penetrates B-75 Beast. Slug penetrates Wall. Map ----- +----------------------------------------------------+ | | | | | ?????????????????????????????????????????????????? | | #######??????????????????????????????????????????? | | #??????????????????????????????????????????? | | #?????######################???????????????? | | ####### + ! #???????????????? | | # !=#???????????????? | | "" # #???????????????? | | ############# "Y + #???????????????? | | ############# "" #* #???????????????? | | # #???????????????? | | ###+##+#???????????????? | | ########### #?# #???????????????? | | ##???????## ### #???????????????? | | #??????#?#% ## #???????????????? | | #????### #%%%## #???????????????? | | #????# % ## #???????????????? | | #????# %## ### #???????????????? | | #????###T?#%###% %#???????????????? | | #??????#??# %% #???????????????? | | ###############???????### #???????????????? | | ## ###????????????#%;% % #???????????????? | | ?#######??????????????##; % %#???????????????? | | ???????????????????????#; #???????????????? | | ????????????????????????#@ % #???????????????? | | ???????????????????????%% % BB% #???????????????? | | ??????????????????????# % BB% #???????????????? | | ??????????????????????#########;%#???????????????? | | ????????????????????????????#### #???????????????? | | ???????????????????????????????#%#???????????????? | | ???????????????????????????????#[##??????????????? | | ???????????????????????????????# #???????????????? | | ???????????????????????????????# #???????????????? | | ??????????????????????????????? "???????????????? | | ??????????????????????????????? "???????????????? | | ??????????????????????????????? ???????????????? | | ??????????????????????????????? ???????????????? | | #####################?????????? ???????????????? | | % ????????? ???????????????? | | ????????? ???????????????? | | ???????? ???????????????? | | ! % ???????? ???????????????? | | =%= ???????? ???????????????? | | #+#####/###########???????????? ???????????????? | | # #### #???????????????????????????????????????? | | # *#???????????????????????????????????????? | | ######** #???????????????????????????????????????? | | ?????#####???????????????????????????????????????? | | ?????????????????????????????????????????????????? | +----------------------------------------------------+ Best States ------------- Heat Dissipation 75 Energy Generation 25 Energy Capacity 265 Matter Stores 800 Matter Capacity 800 Sight Range 16 Terrain Scan Range 16 Terrain Scan Density 10 Armor Coverage 225 Evasion (%) 63 Targeting Accuracy 6 Target Analysis 5 Core Analysis 6 Recoil Reduction 2 Salvage Targeting 1 Defensive Hacking 12 Item Schematics ----------------- None Robot Schematics ------------------ None Fabricated ------------ Nothing Repaired ---------- Nothing Studied --------- None Alien Tech Used ----------------- None Achievements -------------- Explosive Keycard Challenges ------------ None Game ------ Seed ThunderQuantumDeflector Manual? 0 Play Time 00:53:16 Cumulative 264.5 hours Start 2026.04.12 @ 11:21:20 End 2026.04.12 @ 13:13:39 Sessions 1 Manual Loads 0 Difficulty Rogue Special Mode None Game No. 702 Rogue 700 Adventurer 2 Explorer 0 Win Type - Total 0 Types 0/0/0/0/0/0/0/0/0/0 Lore% 67 Gallery% 63 Achievement% 44 Wizard Run 0 Options --------- Layout 2 ASCII 0 Keyboard 0 Movement Mouse Keybinds 0 Fullscreen 1 Font 24/Smallcaps Map View 50x44 Zoom Use 0% Tactical HUD 0 Map Filters NONE Filters NONE Steam 1 RUN: 81076ca5-6576-4900-b79f-a82d09c1f0f6